bitfinex/quotes_ETHUSD_20240707
["timestamp","ask_amount","ask_price","bid_price","bid_amount"]
[1720382581807,3.0,2990.2,2989.7,0.939]
[1720382582102,3.0,2990.2,2990.1,0.939]
[1720382585714,3.0,2989.9,2989.6,2.3898]
[1720382585910,0.0667858,2989.8,2989.4,2.3898]
[1720382586226,0.0667858,2989.8,2989.7,0.939]
[1720382586519,3.0,2989.6,2988.7,2.3898]
[1720382586679,3.0,2989.6,2989.5,0.939]
[1720382587938,3.0667858,2989.6,2989.5,0.939]
[1720382588744,3.0,2989.6,2989.5,0.939]
[1720382590593,3.0,2989.6,2989.4,2.255]
[1720382591427,0.0667858,2989.5,2988.6,2.3726]
[1720382591601,0.0667858,2989.5,2989.0,2.255]
[1720382593303,3.0,2989.3,2989.0,2.255]
[1720382593523,0.0667858,2989.2,2989.0,2.255]
[1720382595298,3.0,2989.3,2989.0,2.255]
[1720382595698,3.0,2989.3,2989.1,2.3639]
[1720382599042,3.0,2989.3,2989.0,2.255]
[1720382599444,0.0667858,2989.2,2989.0,2.255]
[1720382600413,3.0,2989.3,2989.0,2.255]
[1720382601055,0.0667858,2989.2,2989.0,2.255]
[1720382603161,3.0,2989.0,2988.8,2.255]
[1720382603372,0.0667858,2988.9,2988.5,2.3022]
[1720382603534,0.0667858,2988.9,2988.7,2.255]
[1720382604435,0.0667858,2988.9,2988.5,2.255]
[1720382604853,1.46093112,2988.8,2988.5,2.255]
[1720382605024,1.52771281,2988.7,2988.5,2.255]
[1720382605222,1.46092701,2988.6,2988.5,2.255]
[1720382605527,1.46092701,2988.8,2988.5,2.255]
[1720382605734,4.52771281,2988.7,2988.5,2.255]
[1720382605948,1.52771281,2988.6,2988.5,2.255]
[1720382606347,0.0667858,2988.6,2988.5,2.255]
[1720382606724,1.52773954,2988.6,2988.5,2.255]
[1720382607461,0.0667858,2988.6,2988.5,2.255]
[1720382608652,3.0,2988.3,2988.1,0.0685716]
[1720382608960,0.0667858,2988.2,2988.1,0.0685716]
[1720382609457,2.3570858,2988.2,2988.1,0.0685716]
[1720382609658,0.0667858,2988.2,2988.1,0.0685716]
[1720382609866,3.0,2988.3,2988.1,0.0685716]
[1720382610251,3.0,2987.3,2986.4,22.49851336]
[1720382610557,3.0,2987.3,2986.8,2.255]
[1720382610988,3.0,2987.3,2986.6,2.2507]
[1720382611187,3.0,2987.3,2987.0,2.255]
[1720382611456,0.0667858,2987.2,2986.8,2.255]
[1720382612024,3.0,2987.3,2986.8,2.255]
[1720382614567,3.0,2987.3,2987.2,2.255]
[1720382619458,1.79094238,2987.7,2987.2,4.5057]
[1720382619766,1.79094238,2987.7,2987.6,2.255]
[1720382620468,3.0,2988.1,2987.6,2.255]
[1720382621078,3.0667858,2988.1,2987.6,2.255]
[1720382621369,3.0,2988.1,2987.6,2.255]
[1720382622076,3.0667858,2988.1,2987.6,2.255]
[1720382622236,0.34980214,2988.0,2987.6,2.255]
[1720382623084,7.37,2989.0,2988.1,4.8215]
[1720382623244,7.37,2989.0,2988.8,2.255]
[1720382623437,7.37,2989.4,2988.8,2.255]
[1720382623641,3.34975313,2988.9,2988.8,2.255]
[1720382626983,3.0,2988.6,2988.1,2.4789]
[1720382627278,3.0,2988.6,2988.3,2.255]
[1720382639089,0.34975192,2988.5,2988.3,2.255]
[1720382642174,5.4119,2988.6,2988.3,2.255]
[1720382643295,3.0,2988.6,2988.3,2.255]
[1720382644300,3.3,2988.6,2988.3,2.255]
[1720382648308,3.0,2988.6,2988.3,2.255]
[1720382649603,3.0,2988.6,2988.1,2.3157]
[1720382649909,3.0,2988.6,2988.4,2.255]
[1720382651917,0.2885185,2988.5,2988.4,2.255]
[1720382652095,0.2885185,2988.5,2988.0,2.255]
[1720382652096,3.0,2988.3,2988.0,2.255]
[1720382654444,1.15968855,2988.2,2988.0,2.255]
[1720382654628,3.0,2988.3,2988.0,2.255]
[1720382654827,1.1596842,2988.2,2988.0,2.255]
[1720382655145,3.0,2988.3,2988.0,2.255]
[1720382655349,1.15968554,2988.2,2988.0,2.255]
[1720382655547,1.15968554,2988.1,2988.0,2.255]
[1720382656133,3.0,2988.3,2988.0,2.255]
[1720382656318,3.57533518,2988.3,2988.0,2.255]
[1720382656521,1.15968084,2988.2,2988.0,2.255]
[1720382656849,1.15968084,2988.1,2988.0,2.255]
[1720382657152,1.15968084,2988.2,2988.0,2.255]
[1720382657328,1.15968084,2988.1,2988.0,2.255]
[1720382657526,1.15968084,2988.2,2988.0,2.255]
[1720382657725,3.0,2988.3,2988.0,2.255]
[1720382660064,10.71976782,2988.6,2988.1,2.4822]
[1720382660263,1.44811087,2988.5,2988.1,2.5491253]
[1720382660561,10.71976782,2988.6,2988.4,2.255]
[1720382660761,1.4481477,2988.5,2988.4,2.255]
[1720382660964,2.90917517,2988.5,2988.4,2.255]
[1720382662857,0.2887392,2988.5,2988.4,2.255]
[1720382663062,2.90915552,2988.5,2988.4,2.255]
[1720382663263,0.28880229,2988.5,2988.4,2.255]
[1720382663437,1.46090353,2988.5,2988.4,2.255]
[1720382663760,0.2888165,2988.5,2988.4,2.255]
[1720382664059,1.74972003,2988.6,2988.4,2.255]
[1720382664265,1.74981029,2988.5,2988.4,2.255]
[1720382666051,1.74983568,2988.5,2988.4,2.255]
[1720382669264,0.28890676,2988.5,2988.4,2.255]
[1720382669464,1.46083678,2988.5,2988.4,2.255]
[1720382669779,1.74974354,2988.5,2988.1,2.4822]
[1720382669945,1.74974354,2988.4,2988.1,2.4822]
[1720382670130,1.74974354,2988.3,2988.1,2.964693]
[1720382670330,1.74974354,2988.2,2988.1,2.964693]
[1720382670567,1.74974354,2988.2,2988.1,5.219693]
[1720382672764,1.7498376,2988.2,2988.1,5.219693]
[1720382673069,1.74982347,2988.2,2988.1,5.219693]
[1720382673841,3.0,2988.7,2988.1,5.219693]
[1720382674169,3.0,2988.7,2988.2,0.5286618]
[1720382674170,1.74960006,2988.6,2988.2,0.5286618]
[1720382674344,3.0,2988.7,2988.2,0.5286618]
[1720382674345,1.74960006,2988.5,2988.2,0.5286618]
[1720382674671,1.74960006,2988.4,2988.2,0.5286618]
[1720382674870,1.74960006,2988.3,2988.1,5.219693]
[1720382675070,0.28867112,2988.2,2988.1,5.219693]
[1720382675687,3.0,2988.7,2988.1,5.219693]
[1720382675841,1.5882556,2988.6,2988.2,0.0669171]
[1720382676043,3.0,2989.0,2988.2,0.0669171]
[1720382676044,1.5882556,2988.5,2988.2,0.0669171]
[1720382676243,1.5882556,2988.4,2988.3,0.52866101]
[1720382676993,3.0,2989.0,2988.4,2.2808]
[1720382677197,3.0,2989.0,2988.8,2.255]
[1720382680567,3.0,2989.0,2988.5,0.06691539]
[1720382680767,3.0,2989.0,2988.9,0.94]
[1720382682692,3.0,2989.0,2988.5,0.06691539]
[1720382682693,4.15935348,2989.0,2988.4,2.2808]
[1720382682907,3.0,2989.0,2988.9,0.94]
[1720382683209,4.15937378,2989.0,2988.9,0.94]
[1720382685900,4.15934351,2989.0,2988.9,0.94]
[1720382686956,1.15934351,2989.0,2988.9,0.94]
[1720382687158,2.19115031,2989.2,2988.9,0.94]
[1720382687462,3.0,2989.3,2989.1,0.94]
[1720382687656,1.15928546,2989.2,2989.1,0.94]
[1720382687892,3.35030377,2989.2,2989.1,0.94]
[1720382689074,2.19101831,2989.2,2989.1,0.94]
[1720382689289,3.35031648,2989.2,2989.1,0.94]
[1720382690599,1.15927847,2989.2,2989.1,0.94]
[1720382692409,3.0,2989.3,2989.1,0.94]
[1720382692558,1.1592318,2989.2,2989.1,0.94]
[1720382692759,3.0,2989.3,2989.1,0.94]
[1720382693059,1.15923231,2989.2,2989.1,0.94]
[1720382695717,1.15924715,2989.2,2989.1,0.94]
[1720382696964,2.74730065,2989.2,2989.1,0.94]
[1720382697493,2.74731872,2989.2,2989.1,0.94]
[1720382697656,2.74731626,2989.2,2989.1,0.94]
[1720382697862,2.74731731,2989.2,2989.1,0.94]
[1720382698911,1.58806061,2989.2,2989.1,0.94]
[1720382699079,0.12739849,2989.2,2989.1,0.94]
[1720382699282,2.74728021,2989.2,2989.1,0.94]
[1720382699464,2.74729333,2989.2,2989.1,0.94]
[1720382701007,4.93832596,2989.2,2989.1,0.94]
[1720382701586,1.58809986,2989.2,2989.1,0.94]
[1720382701799,4.93843871,2989.2,2989.1,0.94]
[1720382702007,0.12739849,2989.2,2989.1,0.94]
[1720382702215,2.74739021,2989.2,2989.1,0.94]
[1720382702421,4.93844524,2989.2,2989.1,0.94]
[1720382702630,7.38214524,2989.2,2989.1,0.94]
[1720382702787,3.0,2988.8,2988.2,2.4563]
[1720382703132,4.93881123,2988.7,2988.2,2.4563]
[1720382703328,4.93924547,2988.6,2988.2,2.4563]
[1720382703539,1.5883448,2988.5,2988.3,0.24563]
[1720382703833,1.5883448,2988.4,2988.3,0.24563]
[1720382704030,1.5883448,2988.4,2988.3,1.18563]
[1720382704834,1.58826806,2988.4,2988.3,1.18563]
[1720382707388,1.46086957,2988.4,2988.3,1.25255018]
[1720382707583,3.65203488,2989.0,2988.3,1.25255018]
[1720382707889,1.58817419,2988.9,2988.4,0.37088502]
[1720382708088,1.58815999,2988.8,2988.4,0.37088502]
[1720382708324,1.58815999,2988.7,2988.4,0.37088502]
[1720382708627,1.58815999,2988.6,2988.4,0.37088502]
[1720382708829,1.46077574,2988.5,2988.4,0.37088502]
[1720382709035,1.46077574,2988.9,2988.4,1.31088502]
[1720382709246,1.58813738,2988.8,2988.4,0.37088502]
[1720382709540,1.58813738,2988.7,2988.4,0.37088502]
[1720382709739,1.58813738,2988.6,2988.4,0.37088502]
[1720382709910,1.58813738,2988.5,2988.4,0.37088502]
[1720382710242,1.58813738,2988.5,2988.4,1.31088502]
[1720382711044,1.58813738,2988.5,2987.8,2.2808]
[1720382711350,2.19145747,2988.6,2988.4,0.94]
[1720382711550,1.58832876,2988.5,2988.4,0.94]
[1720382711752,0.12736817,2988.5,2988.4,0.94]
[1720382711949,1.5883275,2988.5,2988.4,0.94]
[1720382712471,3.0,2988.4,2987.9,3.0]
[1720382712605,10.37,2989.1,2988.5,2.3239]
[1720382712809,4.93871182,2989.0,2988.5,2.3239]
[1720382713061,3.77918411,2988.9,2988.5,2.3239]
[1720382713226,3.77918411,2988.8,2988.5,2.3239]
[1720382713433,1.58810199,2988.7,2988.5,2.3239]
[1720382713739,2.19109546,2989.0,2988.6,1.17239]
[1720382714087,1.58814786,2988.9,2988.6,0.23239]
[1720382714351,1.58814786,2988.8,2988.6,0.23239]
[1720382714565,1.58815964,2988.7,2988.6,0.23239]
[1720382714726,1.58815964,2988.7,2988.6,2.48839]
[1720382715714,1.58815964,2988.7,2988.6,2.55530447]
[1720382716131,1.58815964,2988.7,2988.6,2.48839]
[1720382717955,1.58810011,2988.7,2988.6,2.48839]
[1720382719213,1.46071549,2988.7,2988.6,2.48839]
[1720382719413,2.19095156,2989.3,2988.6,2.48839]
[1720382719414,1.46071549,2989.2,2988.6,2.48839]
[1720382719644,1.58802113,2989.1,2988.8,2.3048]
[1720382719958,1.58802113,2989.0,2988.9,0.06690604]
[1720382720130,3.0,2989.7,2989.0,2.3779]
[1720382720457,2.19065621,2989.6,2989.1,0.31137811]
[1720382720671,7.37,2989.9,2989.6,2.256]
[1720382720820,2.19052161,2989.8,2989.6,2.256]
[1720382721015,3.0,2990.0,2989.6,2.256]
[1720382721230,3.3495138,2989.9,2989.6,2.256]
[1720382721428,3.0,2990.0,2989.6,2.256]
[1720382721748,3.34950872,2989.9,2989.6,2.256]
[1720382721921,2.19049836,2989.9,2989.6,2.256]
[1720382722631,3.0,2990.0,2989.6,2.256]
[1720382725619,5.5868,2990.0,2989.2,2.4475]
[1720382725821,5.5868,2990.0,2989.4,2.256]
[1720382726340,2.19061918,2989.9,2989.4,2.256]
[1720382726654,5.5868,2990.0,2989.4,2.256]
[1720382727253,3.0,2989.7,2988.9,5.4686]
[1720382727557,3.0,2989.7,2989.1,2.256]
[1720382728543,3.0,2989.4,2988.9,2.4686]
[1720382728747,3.0,2989.4,2989.0,2.256]
[1720382734531,3.0,2989.4,2988.6,2.4686]
[1720382734743,3.0,2989.4,2989.3,0.94]
[1720382735333,3.0,2989.4,2989.3,0.89]
[1720382740184,4.46061344,2989.4,2989.3,0.89]
[1720382740674,4.4606144,2989.4,2989.3,0.89]
[1720382741045,4.46061194,2989.4,2989.3,0.89]
[1720382742580,1.46061194,2989.4,2989.3,0.89]
[1720382742774,1.46061194,2989.6,2989.3,0.89]
[1720382742982,1.46061194,2989.6,2989.5,0.94]
[1720382743347,2.61974696,2989.6,2989.5,0.94]
[1720382743855,2.61975148,2989.6,2989.5,0.94]
[1720382747099,3.0,2989.4,2989.0,0.06689946]
[1720382747299,1.46056164,2989.3,2989.0,0.06689946]
[1720382747487,1.46056164,2989.3,2989.2,0.94]
[1720382748602,1.46056164,2989.3,2988.6,2.334]
[1720382748603,3.0,2989.1,2988.6,2.334]
[1720382748775,1.46056164,2989.0,2988.6,2.334]
[1720382748964,1.46056164,2989.0,2988.9,0.94]
[1720382749462,1.46056164,2989.0,2988.3,3.0]
[1720382749463,3.0,2988.8,2988.3,2.334]
[1720382749670,1.46056164,2988.7,2988.3,2.334]
[1720382749907,1.46056164,2988.7,2988.6,0.94]
[1720382750310,1.46084907,2988.7,2988.6,0.94]
[1720382750621,1.46084796,2988.7,2988.6,0.94]
[1720382750917,3.0,2989.2,2988.6,0.94]
[1720382751221,2.62005317,2989.1,2988.3,2.5674]
[1720382751427,1.46073761,2989.0,2988.4,0.25674]
[1720382751716,3.0,2989.2,2989.0,0.94]
[1720382751881,2.62005893,2989.1,2989.0,0.94]
[1720382753812,2.62000184,2989.1,2989.0,0.94]
[1720382753977,1.46070899,2989.1,2989.0,0.94]
[1720382754177,1.46070899,2989.1,2989.0,1.2763]
[1720382754519,0.34971298,2989.2,2989.0,1.2763]
[1720382754818,0.34971298,2989.2,2989.1,0.06690222]
[1720382754964,1.81020944,2989.2,2989.1,0.06690222]
[1720382755163,1.81020944,2989.2,2989.0,1.34320418]
[1720382755397,0.34971298,2989.2,2989.0,1.34320418]
[1720382756870,1.46053198,2989.1,2989.0,1.34320418]
[1720382757071,0.34971298,2989.2,2989.0,1.2763]
[1720382757280,0.34971298,2989.2,2989.1,0.06690089]
[1720382757678,1.81018736,2989.2,2989.1,0.06690089]
[1720382757970,1.81018736,2989.2,2989.0,1.34320467]
[1720382758170,0.34971298,2989.2,2989.0,1.34320467]
[1720382758505,1.46048672,2989.1,2989.0,1.34320467]
[1720382758679,1.46048599,2989.1,2989.0,1.2763]
[1720382759002,1.46048687,2989.1,2989.0,1.2763]
[1720382760302,0.34971298,2989.2,2989.0,1.2763]
[1720382760502,1.46048717,2989.1,2989.0,1.2763]
[1720382760817,0.34971298,2989.2,2989.0,1.2763]
[1720382761121,1.46048456,2989.1,2989.0,1.2763]
[1720382761900,1.46050194,2989.1,2989.0,1.2763]
[1720382762095,1.46049519,2989.1,2989.0,1.2763]
[1720382762300,0.34971298,2989.2,2989.0,1.2763]
[1720382762506,0.34971298,2989.2,2989.1,0.06690218]
[1720382762702,1.81022755,2989.2,2989.1,0.06690218]
[1720382762900,1.81025041,2989.2,2989.0,1.2763]
[1720382763095,1.46053743,2989.1,2989.0,1.2763]
[1720382763791,1.46053743,2989.1,2988.5,2.4844]
[1720382763992,2.54052573,2989.2,2989.0,0.94]
[1720382764319,2.61995953,2989.1,2989.0,0.94]
[1720382764639,2.61995953,2989.1,2988.2,2.4844]
[1720382764925,4.81109476,2989.0,2988.2,2.4844]
[1720382765123,2.61995953,2988.9,2988.3,0.782697]
[1720382765288,1.4606854,2988.8,2988.3,0.782697]
[1720382765486,1.4606854,2988.7,2988.3,0.782697]
[1720382765688,2.19116996,2989.0,2988.3,0.782697]
[1720382765689,1.4606854,2988.6,2988.3,0.782697]
[1720382765885,1.4606854,2988.5,2988.4,0.3267097]
[1720382766129,2.4206,2989.1,2988.4,1.2667097]
[1720382766439,4.81136098,2989.0,2988.4,0.3267097]
[1720382766738,2.6201634,2988.9,2988.4,0.3267097]
[1720382767039,2.4206,2989.1,2988.4,0.3267097]
[1720382767040,1.4607996,2988.8,2988.4,0.3267097]
[1720382767198,2.19119996,2989.0,2988.7,0.94]
[1720382767393,2.19119996,2989.0,2988.9,0.94]
[1720382767599,4.81136362,2989.0,2988.9,0.94]
[1720382768031,5.16107124,2989.0,2988.9,0.94]
[1720382768951,1.81050683,2989.0,2988.9,0.94]
[1720382769375,0.34970762,2989.0,2988.9,0.94]
[1720382769653,1.81032973,2989.0,2988.9,0.94]
[1720382769838,0.34970762,2989.0,2988.9,0.94]
[1720382770039,1.81035548,2989.0,2988.9,0.94]
[1720382770412,2.96969073,2989.0,2988.9,0.94]
[1720382771242,2.96982908,2989.0,2988.9,0.94]
[1720382772862,5.16099424,2989.0,2988.9,0.94]
[1720382773312,2.96982997,2989.0,2988.9,0.94]
[1720382773741,1.8104838,2989.0,2988.9,0.94]
[1720382774132,1.8104838,2989.0,2988.9,3.4244]
[1720382774315,1.8104838,2989.0,2988.9,3.76684]
[1720382776051,0.34970762,2989.0,2988.9,3.76684]
[1720382776232,1.81021338,2989.0,2988.9,3.76684]
[1720382777079,0.34970762,2989.0,2988.9,3.76684]
[1720382777280,0.34970762,2989.0,2988.9,3.83373689]
[1720382781564,0.34970762,2989.0,2988.9,6.17572689]
[1720382785223,3.0,2989.7,2988.9,6.17572689]
[1720382785396,0.34966219,2989.4,2988.9,5.23572689]
[1720382785595,1.46040545,2989.3,2989.0,0.52357269]
[1720382785848,1.46040545,2989.3,2989.2,0.94]
[1720382786016,1.46040834,2989.3,2989.2,0.94]
[1720382786400,0.34966219,2989.4,2989.2,0.94]
[1720382786607,1.46036899,2989.3,2989.0,0.52357269]
[1720382786824,1.46036899,2989.3,2989.2,0.94]
[1720382788267,0.34966219,2989.4,2989.3,4.61428]
[1720382788559,2.19034369,2990.2,2989.4,2.34159]
[1720382788849,1.46012918,2990.1,2989.5,0.06688717]
[1720382789010,7.37,2990.3,2990.1,0.94]
[1720382789212,1.46013815,2990.2,2990.1,0.94]
[1720382789671,2.3436,2990.4,2990.1,0.94]
[1720382789974,1.4601075,2990.3,2989.5,2.40840717]
[1720382790128,1.4601075,2990.3,2990.2,0.94]
[1720382791217,1.4601075,2990.3,2989.6,0.3077268]
[1720382791523,1.4601075,2990.3,2990.2,0.94]
[1720382792450,1.46015545,2990.3,2990.2,0.94]
[1720382793724,1.46015545,2990.3,2989.6,0.06688608]
[1720382793921,1.46015545,2990.3,2989.4,3.0]
[1720382794209,1.46015545,2990.3,2990.2,0.94]
[1720382795360,3.0,2990.0,2989.4,3.0]
[1720382795670,3.0,2990.0,2989.9,0.94]
[1720382795829,4.46029376,2990.0,2989.9,0.94]
[1720382798968,3.0,2990.0,2989.9,0.94]
[1720382799148,4.46030642,2990.0,2989.9,0.94]
[1720382799660,4.46031525,2990.0,2989.9,0.94]
[1720382802249,3.0,2990.0,2989.9,0.94]
[1720382802450,4.46029626,2990.0,2989.9,0.94]
[1720382803064,5.61926317,2990.0,2989.9,0.94]
[1720382805656,3.0,2990.0,2989.9,0.94]
[1720382805857,5.61928056,2990.0,2989.9,0.94]
[1720382806680,5.61928056,2990.0,2989.4,2.3132]
[1720382806903,2.61928056,2989.9,2989.2,3.0]
[1720382807086,2.61928056,2989.8,2989.3,1.12242663]
[1720382807251,1.46030686,2989.7,2989.3,1.12242663]
[1720382807584,3.0,2990.0,2989.3,1.12242663]
[1720382807585,1.46030686,2989.6,2989.3,1.12242663]
[1720382807742,3.0,2990.0,2989.5,0.94]
[1720382807949,3.0,2990.0,2989.3,1.12242663]
[1720382807950,2.61937743,2989.9,2989.3,1.12242663]
[1720382808143,3.0,2990.0,2989.4,0.41224266]
[1720382808144,2.61937743,2989.8,2989.4,0.41224266]
[1720382808345,1.46036087,2989.7,2989.3,1.12242663]
[1720382808585,1.46036087,2989.6,2989.3,1.12242663]
[1720382808785,3.0,2990.0,2989.5,0.94]
[1720382808985,3.0,2990.0,2989.9,0.94]
[1720382809189,5.61937413,2990.0,2989.9,0.94]
[1720382809368,5.61937395,2990.0,2989.9,0.94]
[1720382809745,6.41567135,2990.0,2989.2,3.0]
[1720382809948,3.0,2989.7,2989.1,2.3132]
[1720382810178,2.61937395,2989.6,2989.1,2.3132]
[1720382810491,1.46035893,2989.5,2989.1,2.3132]
[1720382810722,2.73564429,2989.9,2988.8,2.4741]
[1720382810723,4.46035893,2989.4,2988.8,2.4741]
[1720382810876,3.0,2989.4,2989.3,0.94]
[1720382811212,5.61968096,2989.4,2989.3,0.94]
[1720382812207,5.61981406,2989.4,2989.3,0.94]
[1720382815473,4.4605926,2989.4,2989.3,0.94]
[1720382815665,5.61979308,2989.4,2989.3,0.94]
[1720382816063,4.4605926,2989.4,2989.3,0.94]
[1720382816688,5.61978293,2989.4,2989.3,0.94]
[1720382817413,4.4605926,2989.4,2989.3,0.94]
[1720382818723,3.0,2989.4,2989.3,0.94]
[1720382818871,4.46058635,2989.4,2989.3,0.94]
[1720382819072,2.2964,2989.3,2988.1,9.6343739]
[1720382819319,2.2964,2989.3,2989.2,0.94]
[1720382819471,7.10761709,2989.3,2989.2,0.94]
[1720382820471,4.81121709,2989.3,2989.2,0.94]
[1720382821422,4.81090967,2989.3,2989.2,0.94]
[1720382822493,3.04000604,2989.4,2989.2,0.94]
[1720382822696,3.0,2989.1,2988.2,2.396]
[1720382822901,1.46069891,2989.0,2988.2,2.396]
[1720382823120,1.46069891,2989.0,2988.9,0.94]
[1720382824678,1.46078615,2989.0,2988.9,0.94]
[1720382825217,1.46078615,2989.0,2988.9,1.2736]
[1720382826421,7.41000604,2989.4,2989.0,2.396]
[1720382826719,7.41000604,2989.4,2989.3,3.336]
[1720382826921,0.04000604,2989.4,2989.3,3.336]
[1720382827132,0.04000604,2989.4,2989.3,3.97736962]
[1720382827295,10.37,2990.2,2989.3,6.97736962]
[1720382827488,1.46013434,2990.1,2989.3,5.37899962]
[1720382827685,3.0,2990.2,2989.3,5.37899962]
[1720382827686,3.0,2990.2,2990.0,0.94]
[1720382827937,1.46011417,2990.1,2990.0,0.94]
[1720382828136,4.46011417,2990.1,2989.5,0.0668888]
[1720382828344,4.46011417,2990.1,2990.0,0.94]
[1720382828345,3.0,2990.1,2990.0,0.94]
[1720382828496,4.46018404,2990.1,2990.0,0.94]
[1720382828697,4.46018404,2990.1,2989.8,2.254]
[1720382828933,1.46018404,2990.0,2989.8,2.254]
[1720382829634,1.46018404,2990.0,2989.8,2.204]
[1720382830918,3.0,2990.1,2989.8,2.204]
[1720382831105,1.46014803,2990.0,2989.8,2.204]
[1720382831752,1.46014803,2990.0,2989.8,2.4244]
[1720382834420,1.46017894,2989.9,2989.8,2.4244]
[1720382834625,1.46017894,2990.0,2989.8,2.4244]
[1720382834831,1.46017894,2989.9,2989.8,2.4244]
[1720382835321,3.0,2990.1,2989.8,2.4244]
[1720382835322,1.46017894,2990.0,2989.8,2.4244]
[1720382835522,1.46017894,2989.9,2989.8,2.4244]
[1720382836059,1.46017894,2990.0,2989.8,2.4244]
[1720382836262,1.46017894,2989.9,2989.8,2.4244]
[1720382836616,1.46017894,2990.0,2989.8,2.4244]
[1720382836921,1.46017894,2989.9,2989.8,2.4244]
[1720382837436,1.46017894,2990.0,2989.8,2.4244]
[1720382837650,3.0,2990.1,2989.8,2.4244]
[1720382837822,1.46014365,2990.0,2989.8,2.4244]
[1720382838018,3.0,2990.1,2989.8,2.4244]
[1720382838218,1.46014207,2990.0,2989.8,2.4244]
[1720382839357,1.46012239,2989.9,2989.8,2.4244]
[1720382839527,1.46012239,2990.0,2989.8,2.4244]
[1720382839729,3.0,2990.1,2989.8,2.4244]
[1720382839959,1.46012196,2990.0,2989.9,0.24244]
[1720382840274,3.0,2990.1,2989.9,0.24244]
[1720382841658,3.0,2990.2,2989.9,0.24244]
[1720382841825,3.0,2990.2,2989.9,0.30932085]
[1720382843042,4.79094238,2990.5,2989.9,0.30932085]
[1720382843237,1.46000584,2990.4,2990.2,2.254]
[1720382844059,1.46000584,2990.4,2990.0,0.49093208]
[1720382844255,1.46000597,2990.3,2990.1,2.254]
[1720382844473,4.79094238,2990.5,2990.1,2.254]
[1720382844685,1.46002012,2990.4,2990.1,2.254]
[1720382845591,3.0,2990.2,2990.1,2.254]
[1720382845744,3.0,2990.2,2989.9,0.30932085]
[1720382845949,3.0,2990.2,2990.0,2.254]
[1720382848283,3.0,2990.2,2989.9,0.066884]
[1720382848486,3.0,2990.2,2990.0,2.254]
[1720382848784,3.0,2990.2,2989.9,0.066884]
[1720382848963,3.0,2990.2,2990.0,2.254]
[1720382850565,3.0,2990.2,2989.9,0.066884]
[1720382850776,3.0,2990.2,2990.1,0.939]
[1720382854590,4.76013113,2990.2,2990.1,0.939]
[1720382854890,5.91904116,2990.2,2990.1,0.939]
[1720382857499,5.91918926,2990.2,2990.1,0.939]
[1720382857865,3.3,2990.2,2990.1,0.939]
[1720382858067,5.9191976,2990.2,2990.1,0.939]
[1720382858585,3.0,2989.9,2989.1,2.4717]
[1720382858801,3.0,2989.9,2989.8,0.939]
[1720382859099,5.61932612,2989.9,2989.8,0.939]
[1720382860000,5.61932612,2989.9,2989.2,3.481359]
[1720382860158,2.61933684,2989.8,2989.2,3.481359]
[1720382860362,3.0,2989.9,2989.7,0.939]
[1720382860692,1.46035379,2989.8,2989.7,0.939]
[1720382860855,2.61936474,2989.8,2989.7,0.939]
[1720382861060,1.46035379,2989.8,2989.7,0.939]
[1720382863415,2.61936375,2989.8,2989.7,0.939]
[1720382864082,1.46036896,2989.8,2989.7,0.939]
[1720382867307,3.0,2989.9,2989.7,0.939]
[1720382867511,1.46036448,2989.8,2989.7,0.939]
[1720382870574,1.46034097,2989.8,2989.7,0.939]
[1720382873713,3.0,2989.9,2989.7,0.939]
[1720382874114,1.46027558,2989.8,2989.7,0.939]
[1720382875279,1.46027558,2989.8,2989.7,3.68655]
[1720382875474,1.46027558,2990.1,2989.7,3.344]
[1720382875678,1.46027558,2990.0,2989.7,2.405]
[1720382875893,1.46027558,2989.9,2989.7,2.405]
[1720382876088,3.0,2990.2,2989.8,0.939]
[1720382876300,1.46014132,2990.1,2989.8,0.2405]
[1720382876500,1.46014132,2990.1,2990.0,0.939]
[1720382877321,1.4601093,2990.1,2990.0,0.939]
[1720382877994,1.46011581,2990.1,2990.0,0.939]
[1720382879044,1.46011146,2990.1,2990.0,0.939]
[1720382880540,1.46010836,2990.1,2990.0,0.939]
[1720382881315,1.46010836,2990.1,2990.0,3.3997]
[1720382881655,1.46010836,2990.1,2990.0,3.7704087]
[1720382882840,1.46004558,2990.1,2990.0,3.7704087]
[1720382883137,1.45998574,2990.4,2990.0,3.7704087]
[1720382883339,1.45998574,2990.4,2990.3,0.939]
[1720382886362,1.46000757,2990.4,2990.3,0.939]
[1720382886946,1.46000757,2990.6,2990.3,3.4011]
[1720382887267,7.7055,2990.7,2990.5,0.939]
[1720382887562,5.4648,2991.3,2990.5,0.939]
[1720382887563,0.3355,2991.0,2990.5,0.939]
[1720382887737,1.79515572,2990.9,2990.4,0.40698269]
[1720382887935,1.45969316,2990.8,2990.5,0.75507427]
[1720382888152,1.45969316,2990.8,2990.7,0.939]
[1720382889273,1.45969316,2990.8,2990.4,0.34011]
[1720382889274,3.0,2990.7,2990.4,0.34011]
[1720382889427,3.0,2990.7,2990.6,0.939]
[1720382889625,4.45976467,2990.7,2990.6,0.939]
[1720382892763,3.0,2990.7,2990.6,0.939]
[1720382892962,4.4598074,2990.7,2990.6,0.939]
[1720382893568,3.0,2990.7,2990.6,0.939]
[1720382893872,4.45977868,2990.7,2990.3,2.4621]
[1720382894071,3.0,2990.7,2990.6,0.939]
[1720382894283,4.45979277,2990.7,2990.6,0.939]
[1720382895236,3.0,2990.7,2990.6,0.939]
[1720382895435,3.0,2990.7,2990.3,2.942414]